bitfinex-derivatives/quotes_BTCF0:USTF0_20230901
["timestamp","ask_amount","ask_price","bid_price","bid_amount"]
[1693591582444,0.23127616,25523.0,25518.0,0.00392]
[1693591582445,0.15770521,25521.0,25520.0,0.00392]
[1693591582665,0.00374943,25521.0,25520.0,0.65039491]
[1693591583156,0.00374943,25522.0,25521.0,0.00392]
[1693591583356,0.00374943,25522.0,25521.0,0.65039491]
[1693591583652,0.01860667,25522.0,25521.0,0.424]
[1693591583853,0.03860667,25522.0,25521.0,0.424]
[1693591584058,0.00374943,25519.0,25518.0,0.003]
[1693591584356,0.01860667,25519.0,25518.0,0.43092]
[1693591584552,0.02374943,25519.0,25518.0,0.54101677]
[1693591584753,0.02,25519.0,25518.0,0.53709677]
[1693591585058,0.02,25519.0,25518.0,0.65339491]
[1693591585454,0.02,25519.0,25518.0,0.64947491]
[1693591585658,0.424,25523.0,25518.0,0.65639491]
[1693591585859,0.444,25523.0,25521.0,0.424]
[1693591586159,0.09980766,25522.0,25521.0,0.424]
[1693591586456,0.03860667,25522.0,25521.0,0.424]
[1693591586656,0.02374943,25522.0,25521.0,0.424]
[1693591586847,0.00374943,25522.0,25521.0,0.42762]
[1693591587049,0.00374943,25522.0,25521.0,0.53679677]
[1693591587354,0.02374943,25522.0,25521.0,0.4237]
[1693591587747,0.00374943,25519.0,25518.0,0.006]
[1693591587960,0.02374943,25519.0,25518.0,0.4267]
[1693591588152,0.03860667,25519.0,25518.0,0.4267]
[1693591588560,0.02374943,25519.0,25518.0,0.64617491]
[1693591589057,0.02374943,25519.0,25518.0,0.64917491]
[1693591589256,0.00374943,25519.0,25518.0,0.64917491]
[1693591589446,0.00374943,25522.0,25519.0,0.00392]
[1693591589653,0.00374943,25522.0,25521.0,0.42762]
[1693591590254,0.00374943,25522.0,25521.0,0.65009491]
[1693591590555,0.00374943,25522.0,25521.0,0.64617491]
[1693591591447,0.00374943,25522.0,25521.0,0.64917491]
[1693591592254,0.00374943,25522.0,25521.0,0.85999491]
[1693591592445,0.00374943,25522.0,25521.0,0.85607491]
[1693591593653,0.00374943,25522.0,25521.0,0.85999491]
[1693591593852,0.00374943,25522.0,25521.0,0.85607491]
[1693591594758,0.00374943,25522.0,25521.0,0.87607491]
[1693591594955,0.161,25523.0,25521.0,0.87607491]
[1693591595154,0.161,25523.0,25522.0,0.85007491]
[1693591595360,0.161,25523.0,25522.0,0.87007491]
[1693591596547,0.161,25523.0,25522.0,0.85007491]
[1693591597747,0.161,25523.0,25522.0,0.85307491]
[1693591597953,0.161,25523.0,25522.0,0.87999491]
[1693591598153,0.16474943,25523.0,25522.0,1.50759491]
[1693591598453,0.16474943,25523.0,25522.0,1.50367491]
[1693591598650,0.161,25523.0,25522.0,1.50367491]
[1693591598849,0.16474943,25523.0,25522.0,1.50367491]
[1693591600156,0.16474943,25523.0,25522.0,1.50759491]
[1693591600360,0.16474943,25523.0,25522.0,1.50367491]
[1693591600549,0.16474943,25523.0,25522.0,1.50759491]
[1693591600950,0.16474943,25523.0,25522.0,0.22847491]
[1693591601257,0.16474943,25523.0,25522.0,1.48367491]
[1693591601760,0.161,25523.0,25522.0,1.48367491]
[1693591602957,0.16474943,25523.0,25522.0,1.48367491]
[1693591603952,0.16474943,25523.0,25522.0,1.48759491]
[1693591604362,0.16474943,25523.0,25522.0,1.48367491]
[1693591604659,0.16474943,25523.0,25522.0,1.48759491]
[1693591605353,0.16474943,25523.0,25522.0,1.48367491]
[1693591605658,0.16474943,25523.0,25522.0,1.48759491]
[1693591606163,0.161,25523.0,25522.0,1.48759491]
[1693591606357,0.161,25523.0,25522.0,1.48367491]
[1693591606557,0.161,25523.0,25522.0,1.48759491]
[1693591606864,0.16474943,25523.0,25522.0,1.48759491]
[1693591607165,0.16474943,25523.0,25522.0,1.48367491]
[1693591607465,0.16474943,25523.0,25522.0,1.48759491]
[1693591607761,0.161,25523.0,25522.0,1.48759491]
[1693591607957,0.161,25523.0,25522.0,1.48367491]
[1693591608354,0.161,25523.0,25522.0,1.48759491]
[1693591608762,0.161,25523.0,25522.0,1.48367491]
[1693591608960,0.18474943,25523.0,25522.0,1.2612]
[1693591609158,0.181,25523.0,25522.0,1.2612]
[1693591609559,0.19960667,25523.0,25522.0,1.2612]
[1693591610157,0.181,25523.0,25522.0,1.2612]
[1693591610457,0.19585724,25523.0,25522.0,1.2612]
[1693591610866,0.19585724,25523.0,25522.0,0.6336]
[1693591611257,0.19585724,25523.0,25522.0,0.63752]
[1693591611455,0.27705823,25523.0,25522.0,0.6336]
[1693591611765,0.28080766,25523.0,25522.0,0.006]
[1693591612155,0.90840766,25523.0,25522.0,0.006]
[1693591612365,0.70460766,25523.0,25522.0,0.006]
[1693591612570,0.28080766,25523.0,25522.0,0.4298]
[1693591612762,0.19960667,25523.0,25522.0,0.4298]
[1693591613253,0.28080766,25523.0,25522.0,0.4298]
[1693591614354,0.18474943,25523.0,25522.0,0.4298]
[1693591614557,0.16474943,25523.0,25522.0,0.4298]
[1693591615067,0.18474943,25523.0,25522.0,0.4298]
[1693591615458,0.16474943,25523.0,25522.0,0.4298]
[1693591615661,0.19960667,25523.0,25522.0,0.4298]
[1693591616961,0.28080766,25523.0,25522.0,0.4298]
[1693591617165,0.19960667,25523.0,25522.0,0.4298]
[1693591617364,0.18474943,25523.0,25522.0,0.53917814]
[1693591617861,0.18474943,25523.0,25522.0,0.65227491]
[1693591618065,0.18474943,25523.0,25522.0,0.65619491]
[1693591618066,0.161,25523.0,25522.0,0.65619491]
[1693591620671,0.161,25523.0,25522.0,0.65619491]
[1693591622874,0.161,25523.0,25522.0,0.54681677]
[1693591623276,0.161,25523.0,25522.0,0.65619491]
[1693591626274,0.161,25523.0,25522.0,0.67619491]
[1693591628369,0.00374943,25524.0,25523.0,0.00392]
[1693591628571,0.00374943,25524.0,25523.0,0.65019491]
[1693591628766,0.19628292,25525.0,25524.0,0.00392]
[1693591628966,0.19628292,25525.0,25524.0,0.64627491]
[1693591629164,0.15395578,25526.0,25525.0,0.42772]
[1693591629365,0.0631293,25529.0,25527.0,0.00392]
[1693591629366,0.16424943,25529.0,25527.0,0.00392]
[1693591629568,0.1605,25529.0,25528.0,0.65019491]
[1693591629971,0.16586126,25529.0,25528.0,0.65019491]
[1693591630572,0.19790968,25529.0,25528.0,0.65019491]
[1693591631271,0.19790968,25529.0,25528.0,0.65319491]
[1693591631666,0.35560489,25529.0,25528.0,0.4268]
[1693591631867,0.37560489,25529.0,25528.0,0.4268]
[1693591632271,0.20164911,25529.0,25528.0,0.54009814]
[1693591632470,0.20164911,25529.0,25528.0,0.65619491]
[1693591632676,0.19790968,25529.0,25528.0,0.65619491]
[1693591633579,0.19790968,25529.0,25528.0,0.67619491]
[1693591634273,0.03740968,25529.0,25528.0,0.67619491]
[1693591634479,0.00536126,25529.0,25528.0,0.67619491]
[1693591635076,0.0249476,25529.0,25528.0,0.67619491]
[1693591636379,0.02682309,25529.0,25528.0,0.67619491]
[1693591637275,0.02682309,25529.0,25528.0,0.65619491]
[1693591637477,0.1542,25532.0,25531.0,0.00392]
[1693591637680,0.1542,25532.0,25531.0,0.65019491]
[1693591637974,0.00373943,25533.0,25532.0,0.00392]
[1693591638173,0.1543,25533.0,25532.0,0.22639491]
[1693591638484,0.15803943,25533.0,25532.0,0.22639491]
[1693591638685,0.31199521,25533.0,25532.0,0.22639491]
[1693591638984,0.00373943,25532.0,25531.0,0.006]
[1693591639180,0.00373943,25532.0,25531.0,0.43372]
[1693591639381,0.00373943,25532.0,25531.0,0.4268]
[1693591639580,0.09979766,25532.0,25531.0,0.43072]
[1693591639786,0.19255245,25532.0,25531.0,0.4268]
[1693591639976,0.03859667,25532.0,25531.0,0.4268]
[1693591640176,0.02,25532.0,25531.0,0.65019491]
[1693591640377,0.30825578,25533.0,25532.0,0.00392]
[1693591640580,0.35993431,25533.0,25532.0,0.54081677]
[1693591640879,0.35993431,25533.0,25532.0,0.65019491]
[1693591640880,0.33993431,25533.0,25532.0,0.65019491]
[1693591641583,0.18971796,25533.0,25532.0,0.65319491]
[1693591641880,0.18597853,25533.0,25532.0,0.65619491]
[1693591642078,0.18597853,25533.0,25532.0,0.65227491]
[1693591642274,0.18597853,25533.0,25532.0,0.54289677]
[1693591642593,0.18789139,25533.0,25532.0,0.54289677]
[1693591642781,0.34214217,25533.0,25532.0,0.54289677]
[1693591642980,0.34214217,25533.0,25532.0,0.65227491]
[1693591643587,0.34214217,25533.0,25532.0,0.54289677]
[1693591643588,0.35699941,25533.0,25532.0,0.54289677]
[1693591643882,0.3658816,25533.0,25532.0,0.4298]
[1693591644082,0.46193983,25533.0,25532.0,0.4298]
[1693591644287,0.30394962,25533.0,25532.0,0.4298]
[1693591644488,0.30768905,25533.0,25532.0,0.4298]
[1693591644689,0.30394962,25533.0,25532.0,0.4298]
[1693591645486,0.20789139,25533.0,25532.0,0.54289677]
[1693591645987,0.20789139,25533.0,25532.0,0.65227491]
[1693591646386,0.20789139,25533.0,25532.0,0.65619491]
[1693591646782,0.20789139,25533.0,25532.0,0.65227491]
[1693591647383,0.20789139,25533.0,25532.0,0.65619491]
[1693591647587,0.20789139,25533.0,25532.0,0.65227491]
[1693591647783,0.20789139,25533.0,25532.0,0.65619491]
[1693591648087,0.20789139,25533.0,25532.0,0.65227491]
[1693591648476,0.20789139,25533.0,25532.0,0.65619491]
[1693591648682,0.20789139,25533.0,25532.0,0.65227491]
[1693591649287,0.18789139,25533.0,25532.0,0.65619491]
[1693591649487,0.20789139,25533.0,25532.0,0.65227491]
[1693591649878,0.18789139,25533.0,25532.0,0.65227491]
[1693591650078,0.18789139,25533.0,25532.0,0.23239491]
[1693591650285,0.19163082,25533.0,25532.0,0.22847491]
[1693591650485,0.19163082,25533.0,25532.0,0.23239491]
[1693591650686,0.19163082,25533.0,25532.0,0.22847491]
[1693591651793,0.03359139,25533.0,25532.0,0.25239491]
[1693591651985,0.00191286,25533.0,25532.0,0.25239491]
[1693591652187,0.00191286,25533.0,25532.0,0.55239491]
[1693591654492,0.00191286,25533.0,25532.0,1.13832013]
[1693591654687,0.1565,25537.0,25536.0,0.00392]
[1693591654888,0.1565,25537.0,25536.0,0.44772]
[1693591655085,0.1526,25540.0,25537.0,0.00392]
[1693591655286,0.159,25539.0,25538.0,0.22639491]
[1693591655592,0.159,25539.0,25538.0,0.4438]
[1693591655792,0.159,25539.0,25538.0,0.66627491]
[1693591656181,0.159,25539.0,25538.0,0.67019491]
[1693591656390,0.159,25539.0,25538.0,0.66927491]
[1693591656797,0.16012381,25539.0,25538.0,0.66927491]
[1693591657387,0.16012381,25539.0,25538.0,0.65227491]
[1693591657597,0.16012381,25539.0,25538.0,0.67619491]
[1693591657888,0.03187646,25540.0,25539.0,0.00392]
[1693591658094,0.1601,25544.0,25541.0,0.00392]
[1693591658295,0.1801,25544.0,25543.0,0.4238]
[1693591658497,0.1801,25544.0,25543.0,0.64627491]
[1693591658792,0.18383943,25544.0,25543.0,0.64627491]
[1693591659393,0.16383943,25544.0,25543.0,0.64627491]
[1693591659588,0.18383943,25544.0,25543.0,0.64627491]
[1693591660084,0.18383943,25544.0,25543.0,0.65019491]
[1693591660285,0.16383943,25544.0,25543.0,0.67227491]
[1693591660494,0.16383943,25544.0,25543.0,0.67619491]
[1693591660989,0.16383943,25544.0,25543.0,0.67227491]
[1693591661492,0.16383943,25544.0,25543.0,0.65619491]
[1693591661990,0.19447119,25544.0,25543.0,0.67227491]
[1693591662393,0.19447119,25544.0,25543.0,0.65227491]
[1693591662585,0.19447119,25544.0,25543.0,0.65519491]
[1693591662781,0.19447119,25544.0,25543.0,0.64827491]
[1693591662990,0.19447119,25544.0,25543.0,0.4278]
[1693591663482,0.20932843,25544.0,25543.0,0.4278]
[1693591663683,0.21447119,25544.0,25536.0,0.00391]
[1693591663891,0.4238,25541.0,25540.0,0.4238]
[1693591664088,0.52500099,25541.0,25537.0,0.4238]
[1693591664285,0.4238,25538.0,25537.0,0.28826418]
[1693591664599,0.53985823,25538.0,25534.0,0.4238]
[1693591664793,0.4238,25535.0,25534.0,0.4238]
[1693591665295,0.53985823,25535.0,25534.0,0.4238]
[1693591666194,0.57485823,25535.0,25534.0,0.4268]
[1693591666387,0.4788,25535.0,25534.0,0.53617814]
[1693591666588,0.071,25535.0,25534.0,0.53917814]
[1693591667097,0.035,25535.0,25534.0,0.64927491]
[1693591667296,0.071,25535.0,25534.0,0.85577491]
[1693591668893,0.02845451,25535.0,25534.0,0.85577491]
[1693591669399,0.03,25535.0,25534.0,0.85577491]
[1693591669595,0.033,25535.0,25534.0,0.85577491]
[1693591670093,0.033,25535.0,25534.0,0.85477491]
[1693591671997,0.04785724,25535.0,25534.0,0.6323]
[1693591672302,0.053,25535.0,25534.0,0.6323]
[1693591672497,0.06785724,25535.0,25534.0,0.6323]
[1693591672691,0.053,25535.0,25534.0,0.74167814]
[1693591673092,0.03,25535.0,25534.0,0.85277491]
[1693591673289,0.033,25535.0,25534.0,0.85477491]
[1693591674101,0.033,25535.0,25534.0,0.74539677]
[1693591674708,0.033,25535.0,25534.0,0.74167814]
[1693591674709,0.04785724,25535.0,25534.0,0.74167814]
[1693591675102,0.07904157,25535.0,25534.0,0.74167814]
[1693591675300,0.07904157,25535.0,25534.0,0.6323]
[1693591675607,0.06418433,25535.0,25534.0,0.6323]
[1693591675906,0.06418433,25535.0,25534.0,0.85477491]
[1693591676309,0.06418433,25535.0,25534.0,0.6323]
[1693591676809,0.06418433,25535.0,25534.0,0.6333]
[1693591677107,0.06418433,25535.0,25534.0,0.85577491]
[1693591677408,0.06418433,25535.0,25534.0,0.85477491]
[1693591679206,0.06318433,25535.0,25534.0,0.85377491]
[1693591679413,0.06318433,25535.0,25534.0,0.74339677]
[1693591679802,0.06318433,25535.0,25534.0,0.85277491]
[1693591680105,0.06318433,25535.0,25534.0,0.85668491]
[1693591680308,0.06318433,25535.0,25534.0,0.85277491]
[1693591680512,0.06318433,25535.0,25534.0,0.85668491]
[1693591681614,0.06318433,25535.0,25534.0,0.85277491]
[1693591681806,0.06318433,25535.0,25534.0,0.85668491]
[1693591682007,0.06318433,25535.0,25534.0,0.85277491]
[1693591682802,0.06318433,25535.0,25534.0,0.85668491]
[1693591683109,0.06318433,25535.0,25534.0,0.85277491]
[1693591683602,0.06318433,25535.0,25534.0,0.85668491]
[1693591684003,0.1561,25538.0,25537.0,0.00391]
[1693591684208,0.1644,25542.0,25541.0,0.00391]
[1693591684398,0.1844,25542.0,25540.0,0.00391]
[1693591684604,0.1844,25542.0,25541.0,0.85368491]
[1693591684803,0.1644,25542.0,25541.0,0.63121]
[1693591685207,0.1644,25542.0,25541.0,0.85368491]
[1693591685814,0.1654,25542.0,25541.0,0.85368491]
[1693591687016,0.1664,25542.0,25541.0,0.85368491]
[1693591687313,0.1664,25542.0,25541.0,0.64968491]
[1693591688209,0.002,25542.0,25541.0,0.64968491]
[1693591691015,0.002,25542.0,25541.0,0.42721]
[1693591691511,0.001,25542.0,25541.0,0.53658814]
[1693591691719,0.002,25542.0,25541.0,0.64968491]
[1693591691918,0.001,25542.0,25541.0,0.64968491]
[1693591692119,0.002,25542.0,25541.0,0.64968491]
[1693591692923,0.002,25542.0,25541.0,0.66968491]
[1693591693412,0.001,25542.0,25541.0,0.66968491]
[1693591693612,0.002,25542.0,25541.0,0.66968491]
[1693591694512,0.08320099,25542.0,25541.0,0.56030677]
[1693591694715,0.022,25542.0,25541.0,0.4233]
[1693591694914,0.022,25542.0,25538.0,0.4233]
[1693591694915,0.4453,25542.0,25538.0,0.4233]
[1693591695109,0.4233,25539.0,25536.0,0.00391]
[1693591695316,0.4233,25537.0,25535.0,0.45402497]
[1693591695519,0.4433,25537.0,25535.0,0.45011497]
[1693591695824,0.01485724,25536.0,25535.0,0.45402497]
[1693591696213,0.01485724,25536.0,25535.0,0.45011497]
[1693591696409,0.01485724,25536.0,25535.0,0.45402497]
[1693591696613,0.4233,25537.0,25536.0,0.00391]
[1693591696815,0.1618999,25539.0,25536.0,0.42721]
[1693591696816,0.008,25539.0,25536.0,0.42721]
[1693591697009,0.028,25539.0,25538.0,0.42721]
[1693591697613,0.028,25539.0,25538.0,0.53658814]
[1693591697814,0.02,25539.0,25538.0,0.64968491]
[1693591698009,0.3259,25541.0,25539.0,0.00391]
[1693591698223,0.3259,25541.0,25540.0,0.64968491]
[1693591698409,0.1644,25541.0,25540.0,0.42721]
[1693591698609,0.1644,25541.0,25540.0,0.53658814]
[1693591698822,0.1644,25541.0,25540.0,0.64968491]
[1693591699013,0.1744,25541.0,25540.0,0.64968491]
[1693591699521,0.1744,25541.0,25540.0,0.65268491]
[1693591700222,0.1834,25541.0,25540.0,0.65568491]
[1693591700922,0.1834,25541.0,25540.0,0.67568491]
[1693591701808,0.1834,25541.0,25540.0,0.65568491]
[1693591702010,0.1834,25541.0,25540.0,0.67568491]
[1693591702524,0.1834,25541.0,25540.0,0.65568491]
[1693591702823,0.1834,25541.0,25540.0,0.67568491]
[1693591703023,0.019,25541.0,25540.0,0.67568491]
[1693591704616,0.019,25541.0,25540.0,0.65568491]
[1693591711027,0.019,25541.0,25540.0,0.67568491]
[1693591711618,0.019,25541.0,25540.0,0.65568491]
[1693591711928,0.1538999,25548.0,25545.0,0.00391]
[1693591712230,0.1559,25549.0,25547.0,0.4233]
[1693591712427,0.1559,25549.0,25548.0,0.4233]
[1693591712428,0.02,25549.0,25548.0,0.4233]
[1693591712629,0.02,25549.0,25548.0,0.64577491]
[1693591713330,0.03145124,25549.0,25548.0,0.64577491]
[1693591713526,0.98765714,25550.0,25548.0,0.64577491]
[1693591713726,1.05400089,25550.0,25549.0,0.4233]
[1693591713926,0.8189,25550.0,25549.0,0.4233]
[1693591714533,0.83375724,25550.0,25549.0,0.4233]
[1693591714722,0.83375724,25550.0,25549.0,0.4263]
[1693591714921,0.8189,25550.0,25549.0,0.53567814]
[1693591715135,0.83375724,25550.0,25549.0,0.4263]
[1693591715629,0.91495823,25550.0,25549.0,0.4263]
[1693591716131,0.91869766,25550.0,25549.0,0.4263]
[1693591716832,0.83749667,25550.0,25549.0,0.4283]
[1693591717335,0.91869766,25550.0,25549.0,0.4283]
[1693591717536,0.95015672,25550.0,25549.0,0.4283]
[1693591718836,0.97015672,25550.0,25549.0,0.4283]
[1693591719238,0.96641729,25550.0,25549.0,0.4283]
[1693591719636,1.15879191,25550.0,25549.0,0.4283]
[1693591720639,1.13879191,25550.0,25549.0,0.4283]
[1693591720836,1.15879191,25550.0,25549.0,0.4283]
[1693591721035,1.38971729,25550.0,25549.0,0.4283]
[1693591721553,1.58259792,25550.0,25549.0,0.4283]
[1693591721734,1.38971729,25550.0,25549.0,0.4283]
[1693591725555,1.38971729,25550.0,25549.0,0.36897925]
[1693591726042,1.39345672,25550.0,25549.0,0.36897925]
[1693591726442,1.38971729,25550.0,25549.0,0.36897925]
[1693591726654,1.39345672,25550.0,25549.0,0.36897925]
[1693591726952,0.00373943,25549.0,25548.0,0.4233]
[1693591727150,0.54309766,25549.0,25548.0,0.4233]
[1693591727449,0.53935823,25549.0,25548.0,0.4233]
[1693591727654,0.54309766,25549.0,25548.0,0.4233]
[1693591727954,0.53935823,25549.0,25548.0,0.4233]
[1693591728256,0.54135823,25549.0,25548.0,0.4253]
[1693591728461,0.54335823,25549.0,25548.0,0.4273]
[1693591729450,0.73640045,25549.0,25548.0,0.4273]
[1693591732251,0.19704222,25549.0,25548.0,0.4273]
[1693591732657,0.15845719,25549.0,25548.0,0.4473]
[1693591732846,0.15845719,25549.0,25548.0,0.66977491]
[1693591733052,0.15845719,25549.0,25548.0,0.67368491]
[1693591733253,0.00773943,25549.0,25548.0,0.67368491]
[1693591733453,0.16219662,25549.0,25548.0,0.67368491]
[1693591733857,0.15845719,25549.0,25548.0,0.65368491]
[1693591734061,0.19704222,25549.0,25548.0,0.67368491]
[1693591735157,0.004,25549.0,25548.0,0.67368491]
[1693591735552,0.19704222,25549.0,25548.0,0.67368491]
[1693591735961,0.19704222,25549.0,25548.0,0.65368491]
[1693591736162,0.19704222,25549.0,25548.0,0.67368491]
[1693591736754,0.004,25549.0,25548.0,0.67368491]
[1693591737063,0.19704222,25549.0,25548.0,0.67368491]
[1693591737360,0.004,25549.0,25548.0,0.67368491]
[1693591737866,0.84502447,25554.0,25548.0,0.67368491]
[1693591737867,0.30901445,25562.0,25561.0,0.00391]
[1693591738157,0.15437253,25565.0,25564.0,0.69321]
[1693591738353,0.15441923,25568.0,25565.0,0.3]
[1693591738557,0.15441923,25569.0,25566.0,0.00391]
[1693591738760,0.34745236,25569.0,25568.0,0.4233]
[1693591738957,0.3261299,25569.0,25568.0,0.4233]
[1693591739156,0.00373943,25570.0,25569.0,0.00391]
[1693591739157,0.19303313,25570.0,25569.0,0.00391]
[1693591739351,0.00373943,25570.0,25569.0,0.4233]
[1693591739552,0.19303313,25570.0,25569.0,0.4233]
[1693591739760,0.13311757,25570.0,25569.0,0.4233]
[1693591739967,0.32241127,25570.0,25569.0,0.4233]
[1693591740170,0.24247491,25570.0,25569.0,0.4233]
[1693591740353,0.66577491,25570.0,25568.0,0.4233]
[1693591740658,0.22247491,25569.0,25568.0,0.4233]
[1693591740859,0.13309677,25569.0,25568.0,0.4233]
[1693591741061,0.001,25570.0,25569.0,0.00391]
[1693591741266,0.03078764,25571.0,25570.0,0.00391]
[1693591741457,0.11309677,25572.0,25571.0,0.00391]
[1693591741656,0.1805,25574.0,25573.0,0.00391]
[1693591741857,0.29359677,25574.0,25573.0,0.4233]
[1693591742254,0.40297491,25574.0,25573.0,0.4233]
[1693591742859,0.40297491,25574.0,25573.0,0.4263]
[1693591743067,0.40297491,25574.0,25573.0,0.003]
[1693591743068,0.43427307,25574.0,25573.0,0.003]
[1693591743267,0.85757307,25574.0,25573.0,0.003]
[1693591743567,0.85857307,25574.0,25573.0,0.006]
[1693591743765,0.43527307,25574.0,25573.0,0.4293]
[1693591745962,0.00373943,25572.0,25568.0,0.4233]
[1693591746172,0.42703943,25570.0,25568.0,0.4233]
[1693591746369,0.4233,25570.0,25568.0,0.4233]
[1693591746666,0.11309677,25569.0,25566.0,0.00391]
[1693591746871,0.00373943,25572.0,25566.0,0.00391]
[1693591746872,0.00373943,25572.0,25569.0,0.00391]
[1693591747066,0.00373943,25572.0,25571.0,0.4233]
[1693591747272,0.3,25573.0,25572.0,0.00391]
[1693591747471,0.43309677,25573.0,25572.0,0.4233]
[1693591748159,0.11309677,25573.0,25572.0,0.4233]
[1693591748361,0.22247491,25573.0,25572.0,0.4233]
[1693591748567,0.11609677,25573.0,25572.0,0.4263]
[1693591748963,0.22547491,25573.0,25572.0,0.43021]
[1693591749473,0.22547491,25573.0,25572.0,0.4263]
[1693591749664,0.22847491,25573.0,25572.0,0.4293]
[1693591749969,0.22847491,25573.0,25572.0,0.43321]
[1693591750172,0.22847491,25573.0,25572.0,0.4293]
[1693591750963,0.23221434,25573.0,25572.0,0.4293]
[1693591751373,0.97551434,25573.0,25572.0,0.006]
[1693591751962,0.97551434,25573.0,25567.0,0.4201]
[1693591751963,0.3,25570.0,25567.0,0.4201]
[1693591752164,0.4233,25568.0,25564.0,0.4233]
[1693591752371,0.4233,25566.0,25564.0,0.4233]
[1693591752673,0.22621434,25565.0,25564.0,0.4233]
[1693591752885,0.24621434,25565.0,25564.0,0.4233]
[1693591753175,0.19945988,25565.0,25564.0,0.4233]
[1693591753474,0.19945988,25565.0,25564.0,0.4253]
[1693591753875,0.19945988,25565.0,25564.0,0.4273]
[1693591754666,0.17945988,25565.0,25564.0,0.4323]
[1693591754974,0.19945988,25565.0,25564.0,0.4323]
[1693591755368,0.18545988,25565.0,25564.0,0.4303]
[1693591755670,0.21145988,25565.0,25564.0,0.4293]
[1693591756668,0.1488362,25565.0,25564.0,0.4293]
[1693591757469,0.1288362,25565.0,25564.0,0.4293]
[1693591757669,0.1488362,25565.0,25564.0,0.4293]
[1693591758075,0.1288362,25565.0,25564.0,0.4293]
[1693591758376,0.1488362,25565.0,25564.0,0.4293]
[1693591758576,0.1288362,25565.0,25564.0,0.4293]
[1693591759380,0.00373943,25564.0,25560.0,0.4233]
[1693591759676,0.4233,25561.0,25560.0,0.4233]
[1693591759875,0.66577491,25561.0,25560.0,0.4233]
[1693591760278,0.66577491,25561.0,25557.0,0.4233]
[1693591760474,0.4233,25558.0,25554.0,0.4233]
[1693591760672,1.6233,25555.0,25549.0,0.4233]
[1693591760875,1.22,25555.0,25549.0,0.35132945]
[1693591762071,0.3,25553.0,25549.0,0.35132945]
[1693591762271,0.84957491,25552.0,25548.0,0.00391]
[1693591762475,0.7554,25557.0,25554.0,0.00391]
[1693591762476,0.3,25556.0,25554.0,0.00391]
[1693591762783,0.037,25555.0,25554.0,0.6271]
[1693591762980,0.037,25555.0,25554.0,0.67385446]
[1693591763279,0.008,25555.0,25554.0,0.63101]
[1693591763479,0.008,25555.0,25552.0,0.72507595]
[1693591763682,0.008,25555.0,25552.0,0.74507595]
[1693591763878,0.11309677,25554.0,25552.0,0.74507595]
[1693591764074,0.008,25555.0,25552.0,0.79183041]
[1693591764279,0.7825,25557.0,25555.0,0.016]
[1693591764478,0.22247491,25556.0,25555.0,0.016]
[1693591764682,0.21404494,25557.0,25555.0,0.6431]
[1693591764981,0.21404494,25557.0,25555.0,0.64701]
[1693591765186,0.1554,25557.0,25556.0,0.67776446]
[1693591765377,0.1554,25557.0,25556.0,0.69776446]
[1693591765775,0.166,25559.0,25557.0,0.00391]
[1693591765973,0.166,25559.0,25558.0,0.67385446]
[1693591766169,0.166,25559.0,25558.0,0.6271]
[1693591766375,0.3,25560.0,25558.0,0.00391]
[1693591767081,0.11409677,25559.0,25558.0,0.00691]
[1693591767684,0.11309677,25559.0,25558.0,0.00391]
[1693591767886,0.11309677,25559.0,25558.0,0.00691]
[1693591768278,0.15009677,25559.0,25558.0,0.00991]
[1693591769587,0.25947491,25559.0,25558.0,0.00991]
[1693591770085,0.038,25559.0,25558.0,0.63701]
[1693591770585,0.15109677,25559.0,25558.0,0.00991]
[1693591770886,0.15109677,25559.0,25558.0,0.006]
[1693591771083,0.26047491,25559.0,25558.0,0.006]
[1693591771388,0.90757491,25559.0,25558.0,0.006]
[1693591772386,0.3,25556.0,25555.0,0.016]
[1693591772587,0.52247491,25556.0,25555.0,0.016]
[1693591773184,0.3,25553.0,25552.0,0.09797595]
[1693591773495,0.9471,25553.0,25549.0,0.00391]
[1693591773798,0.9471,25553.0,25545.0,0.00651777]
[1693591773799,2.1271,25550.0,25545.0,0.00651777]
[1693591773981,2.1271,25550.0,25545.0,0.02]
[1693591773982,0.6271,25548.0,25545.0,0.02]
[1693591774187,0.11309677,25547.0,25545.0,0.02]
[1693591774383,0.6271,25548.0,25545.0,0.02]
[1693591774787,0.11309677,25547.0,25545.0,0.02]
[1693591775384,0.11309677,25546.0,25545.0,0.02]
[1693591775580,0.6271,25548.0,25545.0,0.02]
[1693591775981,0.027,25547.0,25545.0,0.025]
[1693591776184,0.004,25550.0,25547.0,1.3082]
[1693591776384,0.004,25550.0,25549.0,0.6271]
[1693591776591,0.004,25550.0,25549.0,0.69385446]
[1693591776789,0.6271,25555.0,25549.0,0.69385446]
[1693591776998,0.6271,25554.0,25549.0,0.6271]
[1693591777191,0.6271,25552.0,25547.0,0.6811]
[1693591777595,0.004,25550.0,25549.0,0.001]
[1693591777796,0.004,25550.0,25549.0,0.04775446]
[1693591777992,0.004,25550.0,25549.0,0.001]
[1693591778193,0.11709677,25550.0,25549.0,0.001]
[1693591778591,0.22647491,25550.0,25549.0,0.001]
[1693591778791,0.004,25550.0,25549.0,0.06775446]
[1693591779105,0.004,25550.0,25549.0,0.06839446]
[1693591779397,0.11309677,25551.0,25550.0,0.00064]
[1693591779991,0.22247491,25551.0,25550.0,0.00064]
[1693591780193,0.11309677,25551.0,25550.0,0.00064]
[1693591780596,0.13409677,25551.0,25550.0,0.00164]
[1693591780798,0.13409677,25551.0,25550.0,0.65074]
[1693591780799,0.025,25551.0,25550.0,0.65074]
[1693591780996,0.03096765,25556.0,25552.0,0.00064]
[1693591781195,0.7772,25557.0,25556.0,0.00064]
[1693591781196,0.1501,25557.0,25556.0,0.00064]
[1693591781496,0.11309677,25557.0,25556.0,0.00064]
[1693591781691,0.9271,25560.0,25557.0,0.00064]
[1693591781889,0.22247491,25559.0,25558.0,0.00064]
[1693591782495,0.22247491,25559.0,25556.0,0.00064]
[1693591782694,0.10937814,25559.0,25557.0,0.00064]
[1693591782894,0.11237814,25559.0,25558.0,0.003]
[1693591783087,0.11609677,25559.0,25558.0,0.003]
[1693591783288,0.22547491,25559.0,25558.0,0.003]
[1693591783492,0.22547491,25559.0,25556.0,0.00064]